[Event "41st Jacques-Lemans-Open 2022"]
[Site "St. Veit/Glan"]
[Date "2022.07.13"]
[Round "6.30"]
[White "Wiedner, Robert"]
[Black "Rempe, Jonas"]
[Result "1/2-1/2"]
[ECO "D37"]
[WhiteElo "2133"]
[BlackElo "1861"]
[Annotator "ChessBase"]
[PlyCount "86"]
[EventDate "2022.07.09"]
[EventType "swiss"]
[EventCountry "AUT"]
[SourceTitle "playchess.com"]
[Source "ChessBase"]
[SourceQuality "1"]
[TimeControl "40/5400+30:1800+30"]

1. Nf3 {[%emt 0:00:08]} Nf6 {[%emt 0:00:07]} 2. c4 {[%emt 0:00:07]} e6 {[%emt 0:01:14]} 3. d4 {[%emt 0:01:32]} d5 {[%emt 0:00:04]} 4. Nc3 {[%emt 0:00:19]} b6 {[%emt 0:12:49]} 5. Bg5 {[%emt 0:01:08]} Be7 {[%emt 0:03:57]} 6. e3 {[%emt 0:00:24]} Bb7 {[%emt 0:00:54]} 7. cxd5 {[%emt 0:01:39]} exd5 {[%emt 0:00:24]} 8. Bd3 {[%emt 0:06:45]} O-O {[%emt 0:01:02]} 9. O-O {[%emt 0:00:50]} c5 {[%emt 0:03:20]} 10. Re1 {[%emt 0:05:37]} Nc6 {[%emt 0:01:47]} 11. dxc5 {[%emt 0:01:45]} bxc5 {[%emt 0:04:32]} 12. Bxf6 {[%emt 0:00:44]} Bxf6 {[%emt 0:00:30]} 13. Nxd5 {[%emt 0:00:21]} Bxb2 {[%emt 0:01:26]} 14. Rb1 {[%emt 0:00:07]} Ne5 {[%emt 0:00:06]} 15. Nxe5 {[%emt 0:01:15]} Qxd5 {[%emt 0:00:43]} 16. Bxh7+ {[%emt 0:01:41]} Kxh7 {[%emt 0:00:11]} 17. Qxd5 {[%emt 0:00:07]} Bxd5 {[%emt 0:00:06]} 18. Rxb2 {[%emt 0:00:05]} c4 {[%emt 0:14:38]} 19. e4 {[%emt 0:01:05]} Be6 {[%emt 0:03:54]} 20. Rc2 {[%emt 0:06:35]} Rac8 {[%emt 0:02:33]} 21. Rec1 {[%emt 0:01:38]} Rc5 {[%emt 0:01:11]} 22. f4 {[%emt 0:00:28]} f6 {[%emt 0:01:17]} 23. Nf3 {[%emt 0:01:37]} Rd8 {[%emt 0:03:08]} 24. Rc3 {[%emt 0:00:26]} Ra5 {[%emt 0:02:59]} 25. a3 {[%emt 0:00:21]} Rb5 {[%emt 0:07:11]} 26. R1c2 {[%emt 0:02:22]} Rb3 {[%emt 0:05:59]} 27. Kf2 {[%emt 0:00:17]} Rd3 {[%emt 0:05:51]} 28. Rxd3 {[%emt 0:01:39]} Rxd3 {[%emt 0:03:40]} 29. Nd2 {[%emt 0:02:55]} Rxa3 {[%emt 0:04:03]} 30. Nxc4 {[%emt 0:00:15]} Rd3 {[%emt 0:02:32]} 31. Na5 {[%emt 0:04:45]} Ra3 {[%emt 0:04:15]} 32. Nc6 {[%emt 0:04:25]} a5 {[%emt 0:00:25]} 33. Nd4 {[%emt 0:00:17]} Ra2 {[%emt 0:01:10]} 34. Ke3 {[%emt 0:00:33]} Rxc2 {[%emt 0:00:05]} 35. Nxc2 {[%emt 0:00:06]} a4 {[%emt 0:00:03]} 36. f5 {[%emt 0:01:04]} Bb3 {[%emt 0:01:49]} 37. Na3 {[%emt 0:02:00]} g6 {[%emt 0:00:52]} 38. fxg6+ {[%emt 0:01:07]} Kxg6 {[%emt 0:00:08]} 39. Kf4 {[%emt 0:00:06]} Bd1 {[%emt 0:01:45]} 40. g4 {[%emt 0:01:51]} Bb3 {[%emt 0:00:41]} 41. h4 {[%emt 0:30:16]} Bd1 {[%emt 0:30:07]} 42. h5+ {[%emt 0:00:37]} Kh6 {[%emt 0:01:17]} 43. Kf5 {[%emt 0:00:23]} Kg7 {[%emt 0:00:04]} 1/2-1/2

[Event "41st Jacques-Lemans-Open 2022"]
[Site "St. Veit/Glan"]
[Date "2022.07.13"]
[Round "6.31"]
[White "Schippel, Gert"]
[Black "Enne, Harald"]
[Result "0-1"]
[ECO "D02"]
[WhiteElo "2106"]
[BlackElo "1919"]
[Annotator "ChessBase"]
[PlyCount "102"]
[EventDate "2022.07.09"]
[EventType "swiss"]
[EventCountry "AUT"]
[SourceTitle "playchess.com"]
[Source "ChessBase"]
[SourceQuality "1"]
[TimeControl "40/5400+30:1800+30"]

1. Nf3 {[%emt 0:00:04]} d5 {[%emt 0:00:11]} 2. d4 {[%emt 0:00:23]} Nf6 {[%emt 0:00:18]} 3. c4 {[%emt 0:00:06]} c6 {[%emt 0:00:27]} 4. Qc2 {[%emt 0:03:12]} g6 {[%emt 0:02:14]} 5. Bf4 {[%emt 0:00:48]} Bg7 {[%emt 0:00:26]} 6. e3 {[%emt 0:00:44]} O-O {[%emt 0:00:54]} 7. Nc3 {[%emt 0:03:12]} Bf5 {[%emt 0:07:39]} 8. Qb3 {[%emt 0:00:18]} Qb6 {[%emt 0:00:22]} 9. c5 {[%emt 0:04:11]} Qxb3 {[%emt 0:00:46]} 10. axb3 {[%emt 0:00:02]} Nh5 {[%emt 0:08:01]} 11. Bg3 {[%emt 0:02:39]} Nxg3 {[%emt 0:00:31]} 12. hxg3 {[%emt 0:00:02]} f6 {[%emt 0:05:15]} 13. b4 {[%emt 0:05:20]} e5 {[%emt 0:00:25]} 14. b5 {[%emt 0:02:26]} Nd7 {[%emt 0:03:57]} 15. b4 {[%emt 0:09:50]} Rfd8 {[%emt 0:25:05]} 16. bxc6 {[%emt 0:20:50]} bxc6 {[%emt 0:00:03]} 17. b5 {[%emt 0:00:08]} Nb8 {[%emt 0:02:48]} 18. Kd2 {[%emt 0:05:54]} Bg4 {[%emt 0:03:05]} 19. Ne1 {[%emt 0:25:03]} exd4 {[%emt 0:00:52]} 20. exd4 {[%emt 0:00:05]} Be6 {[%emt 0:06:04]} 21. Nc2 {[%emt 0:01:21]} f5 {[%emt 0:02:46]} 22. Bd3 {[%emt 0:01:41]} Bd7 {[%emt 0:13:42]} 23. Ra2 {[%emt 0:02:44]} cxb5 {[%emt 0:06:54]} 24. Nxd5 {[%emt 0:01:35]} Nc6 {[%emt 0:00:20]} 25. Nc7 {[%emt 0:00:30]} Rab8 {[%emt 0:02:38]} 26. Nxb5 {[%emt 0:00:11]} a5 {[%emt 0:04:29]} 27. f4 {[%emt 0:05:02]} Be6 {[%emt 0:00:19]} 28. Ra4 {[%emt 0:01:39]} Bb3 {[%emt 0:00:01]} 29. Bc4+ {[%emt 0:00:02]} Bxc4 {[%emt 0:00:13]} 30. Nd6 {[%emt 0:04:15]} Bb3 {[%emt 0:00:23]} 31. Ra3 {[%emt 0:01:04]} Bxc2 {[%emt 0:00:09]} 32. Kxc2 {[%emt 0:00:01]} Nxd4+ {[%emt 0:00:10]} 33. Kd3 {[%emt 0:01:06]} Nc6 {[%emt 0:01:41]} 34. Kc4 {[%emt 0:00:21]} Rb4+ {[%emt 0:00:26]} 35. Kd5 {[%emt 0:00:01]} Ne7+ {[%emt 0:01:37]} 36. Ke6 {[%emt 0:00:01]} Nc6 {[%emt 0:00:36]} 37. Kd5 {[%emt 0:00:03]} Rd4+ {[%emt 0:01:09]} 38. Kxc6 {[%emt 0:00:10]} Bf8 {[%emt 0:00:56]} 39. Nb7 {[%emt 0:02:03]} Rc8+ {[%emt 0:00:39]} 40. Kb6 {[%emt 0:00:47]} Rb4+ {[%emt 0:00:31]} 41. Ka7 {[%emt 0:01:15]} Rc7 {[%emt 0:03:58]} 42. Rxa5 {[%emt 0:13:41]} Rcxb7+ {[%emt 0:02:43]} 43. Ka6 {[%emt 0:00:37]} Rb8 {[%emt 0:00:44]} 44. Ka7 {[%emt 0:00:26]} Rc8 {[%emt 0:05:10]} 45. Rc1 {[%emt 0:01:56]} Bg7 {[%emt 0:00:17]} 46. Rc2 {[%emt 0:07:07]} Bd4 {[%emt 0:00:32]} 47. Rc1 {[%emt 0:01:08]} Kf8 {[%emt 0:00:12]} 48. Rc2 {[%emt 0:02:34]} Ke7 {[%emt 0:01:46]} 49. Rc1 {[%emt 0:01:53]} Kd7 {[%emt 0:00:22]} 50. Rd1 {[%emt 0:02:09]} Kc7 {[%emt 0:00:06]} 51. Rh1 {[%emt 0:02:46]} Rb7+ {[%emt 0:00:07]} 0-1

[Event "41st Jacques-Lemans-Open 2022"]
[Site "St. Veit/Glan"]
[Date "2022.07.13"]
[Round "6.32"]
[White "Markun, Ozbej"]
[Black "Higatsberger, Michael"]
[Result "1/2-1/2"]
[ECO "B92"]
[WhiteElo "1915"]
[BlackElo "2021"]
[Annotator "ChessBase"]
[PlyCount "81"]
[EventDate "2022.07.09"]
[EventType "swiss"]
[EventCountry "AUT"]
[SourceTitle "playchess.com"]
[Source "ChessBase"]
[SourceQuality "1"]
[TimeControl "40/5400+30:1800+30"]

1. e4 {[%emt 0:00:05]} c5 {[%emt 0:00:13]} 2. Nf3 {[%emt 0:00:10]} d6 {[%emt 0:00:06]} 3. d4 {[%emt 0:00:07]} cxd4 {[%emt 0:00:06]} 4. Nxd4 {[%emt 0:00:07]} Nf6 {[%emt 0:00:05]} 5. Nc3 {[%emt 0:00:09]} a6 {[%emt 0:00:07]} 6. Be2 {[%emt 0:00:22]} e5 {[%emt 0:00:14]} 7. Nb3 {[%emt 0:00:08]} Be7 {[%emt 0:00:09]} 8. O-O {[%emt 0:00:40]} O-O {[%emt 0:00:10]} 9. Be3 {[%emt 0:01:58]} Be6 {[%emt 0:00:10]} 10. Qd2 {[%emt 0:01:52]} Nbd7 {[%emt 0:03:16]} 11. a4 {[%emt 0:01:49]} Nb6 {[%emt 0:02:17]} 12. a5 {[%emt 0:04:29]} Nc4 {[%emt 0:00:10]} 13. Bxc4 {[%emt 0:00:15]} Bxc4 {[%emt 0:00:06]} 14. Rfd1 {[%emt 0:01:05]} Rc8 {[%emt 0:01:52]} 15. f3 {[%emt 0:27:19]} Qc7 {[%emt 0:23:12]} 16. Nc1 {[%emt 0:07:36]} d5 {[%emt 0:09:19]} 17. exd5 {[%emt 0:08:12]} Rfd8 {[%emt 0:03:15]} 18. Qe1 {[%emt 0:12:41]} Nxd5 {[%emt 0:01:08]} 19. Nxd5 {[%emt 0:00:09]} Rxd5 {[%emt 0:02:03]} 20. b3 {[%emt 0:01:12]} Rxd1 {[%emt 0:00:40]} 21. Qxd1 {[%emt 0:00:06]} Be6 {[%emt 0:07:22]} 22. c4 {[%emt 0:01:35]} Bb4 {[%emt 0:01:24]} 23. Bb6 {[%emt 0:00:39]} Bc5+ {[%emt 0:00:30]} 24. Bxc5 {[%emt 0:00:06]} Qxc5+ {[%emt 0:00:04]} 25. Kh1 {[%emt 0:00:42]} Qe3 26. Ra2 {[%emt 0:03:08]} h5 {[%emt 0:06:16]} 27. Qd2 {[%emt 0:05:22]} Qxd2 {[%emt 0:05:43]} 28. Rxd2 {[%emt 0:00:06]} Rc5 {[%emt 0:00:07]} 29. Ra2 {[%emt 0:01:41]} Bf5 {[%emt 0:01:03]} 30. Kg1 {[%emt 0:03:13]} g5 {[%emt 0:09:27]} 31. Kf2 {[%emt 0:00:38]} Kg7 {[%emt 0:00:32]} 32. Ke3 {[%emt 0:00:49]} Kf6 {[%emt 0:00:45]} 33. Ne2 {[%emt 0:01:24]} Ke6 {[%emt 0:01:53]} 34. Nc3 {[%emt 0:00:27]} Bg6 {[%emt 0:00:54]} 35. Ne4 {[%emt 0:07:42]} Bxe4 {[%emt 0:00:25]} 36. fxe4 {[%emt 0:00:03]} f6 {[%emt 0:12:41]} 37. Kd3 {[%emt 0:00:30]} Rc6 {[%emt 0:00:48]} 38. Rd2 {[%emt 0:01:36]} Rc5 {[%emt 0:03:39]} 39. Ra2 {[%emt 0:00:57]} Rc6 {[%emt 0:00:12]} 40. Ke3 {[%emt 0:00:53]} Rc5 {[%emt 0:02:01]} 41. Kd3 {[%emt 0:23:03]} 1/2-1/2

[Event "41st Jacques-Lemans-Open 2022"]
[Site "St. Veit/Glan"]
[Date "2022.07.13"]
[Round "6.33"]
[White "Raeke, Philipp"]
[Black "Bajorski, Marius"]
[Result "1-0"]
[ECO "A01"]
[WhiteElo "1908"]
[BlackElo "1870"]
[Annotator "ChessBase"]
[PlyCount "105"]
[EventDate "2022.07.09"]
[EventType "swiss"]
[EventCountry "AUT"]
[SourceTitle "playchess.com"]
[Source "ChessBase"]
[SourceQuality "1"]
[TimeControl "40/5400+30:1800+30"]

1. b3 {[%emt 0:00:03]} e5 {[%emt 0:00:51]} 2. Bb2 {[%emt 0:00:04]} Nc6 {[%emt 0:00:51]} 3. e3 {[%emt 0:00:19]} Nf6 {[%emt 0:02:59]} 4. Bb5 {[%emt 0:00:51]} d6 {[%emt 0:02:22]} 5. Bxc6+ {[%emt 0:02:44]} bxc6 {[%emt 0:00:05]} 6. Ne2 {[%emt 0:01:42]} c5 {[%emt 0:03:07]} 7. d3 {[%emt 0:01:45]} Be7 {[%emt 0:01:47]} 8. Nd2 {[%emt 0:00:58]} O-O {[%emt 0:02:23]} 9. e4 {[%emt 0:01:17]} Ng4 {[%emt 0:06:58]} 10. h3 {[%emt 0:01:30]} Nh6 {[%emt 0:00:11]} 11. g4 {[%emt 0:00:55]} f6 {[%emt 0:14:22]} 12. Ng3 {[%emt 0:09:28]} Kf7 {[%emt 0:08:59]} 13. Qe2 {[%emt 0:02:26]} Ke8 {[%emt 0:02:36]} 14. O-O-O {[%emt 0:02:20]} c6 {[%emt 0:01:30]} 15. Nf5 {[%emt 0:03:32]} Nxf5 {[%emt 0:04:16]} 16. gxf5 {[%emt 0:00:24]} Kd7 {[%emt 0:10:18]} 17. Rhg1 {[%emt 0:02:10]} Rf7 {[%emt 0:00:50]} 18. Rg3 {[%emt 0:01:34]} h6 {[%emt 0:01:59]} 19. Qh5 {[%emt 0:05:04]} Qe8 {[%emt 0:00:28]} 20. Rdg1 {[%emt 0:01:04]} Bf8 {[%emt 0:00:17]} 21. Qd1 {[%emt 0:04:41]} a5 {[%emt 0:03:20]} 22. a4 {[%emt 0:00:21]} Ba6 {[%emt 0:00:20]} 23. Bc3 {[%emt 0:02:16]} Qd8 {[%emt 0:09:28]} 24. Nf3 {[%emt 0:03:20]} d5 {[%emt 0:05:31]} 25. exd5 {[%emt 0:02:28]} cxd5 {[%emt 0:00:14]} 26. Bxe5 {[%emt 0:00:17]} fxe5 {[%emt 0:03:10]} 27. Nxe5+ {[%emt 0:00:03]} Kc7 {[%emt 0:02:01]} 28. Nxf7 {[%emt 0:01:23]} Qf6 {[%emt 0:01:32]} 29. Qh5 {[%emt 0:08:57]} Bxd3 {[%emt 0:00:21]} 30. Rxd3 {[%emt 0:13:18]} Qa1+ {[%emt 0:02:57]} 31. Kd2 {[%emt 0:00:01]} Qxg1 {[%emt 0:00:08]} 32. Qe2 {[%emt 0:00:21]} c4 {[%emt 0:04:05]} 33. bxc4 {[%emt 0:01:17]} Bb4+ {[%emt 0:00:35]} 34. c3 {[%emt 0:01:02]} Ba3 {[%emt 0:00:08]} 35. Qe5+ {[%emt 0:01:28]} Kc8 {[%emt 0:01:01]} 36. Ke2 {[%emt 0:02:59]} Rb8 {[%emt 0:00:42]} 37. Rd2 {[%emt 0:06:02]} Rb1 {[%emt 0:01:27]} 38. Qe8+ {[%emt 0:04:32]} Kb7 {[%emt 0:01:34]} 39. Nd8+ {[%emt 0:01:25]} Ka6 40. Qc6+ {[%emt 0:00:28]} Ka7 {[%emt 0:02:30]} 41. Qc7+ {[%emt 0:32:17]} Ka6 {[%emt 0:32:13]} 42. Qc8+ {[%emt 0:00:00]} Ka7 {[%emt 0:00:00]} 43. Qd7+ {[%emt 0:00:00]} Ka6 {[%emt 0:00:00]} 44. Qe6+ {[%emt 0:00:00]} Ka7 {[%emt 0:00:00]} 45. Nc6+ {[%emt 0:00:00]} Kb7 {[%emt 0:00:00]} 46. Nxa5+ {[%emt 0:00:00]} Kc7 {[%emt 0:00:00]} 47. Kd3 {[%emt 0:02:12]} Qf1+ {[%emt 0:00:00]} 48. Kd4 {[%emt 0:01:47]} Bc1 {[%emt 0:00:00]} 49. Qc6+ {[%emt 0:04:32]} Kb8 {[%emt 0:00:00]} 50. Qd7 {[%emt 0:00:42]} Rb6 {[%emt 0:00:26]} 51. Qd8+ {[%emt 0:01:44]} Ka7 {[%emt 0:00:05]} 52. c5 Rb7 {[%emt 0:04:35]} 53. Nc6+ {[%emt 0:00:44]} 1-0

[Event "41st Jacques-Lemans-Open 2022"]
[Site "St. Veit/Glan"]
[Date "2022.07.13"]
[Round "6.34"]
[White "Wallner, Dieter"]
[Black "Gogniat, Michel"]
[Result "1-0"]
[ECO "D00"]
[WhiteElo "2018"]
[BlackElo "1854"]
[Annotator "ChessBase"]
[PlyCount "36"]
[EventDate "2022.07.09"]
[EventType "swiss"]
[EventCountry "AUT"]
[SourceTitle "playchess.com"]
[Source "ChessBase"]
[SourceQuality "1"]
[TimeControl "40/5400+30:1800+30"]

1. d4 {[%emt 0:00:08]} d5 {[%emt 0:00:09]} 2. Nc3 {[%emt 0:00:09]} Nf6 {[%emt 0:01:18]} 3. Bf4 {[%emt 0:00:09]} c6 {[%emt 0:01:07]} 4. Qd2 {[%emt 0:02:00]} Bf5 {[%emt 0:01:07]} 5. f3 {[%emt 0:00:26]} e6 {[%emt 0:02:38]} 6. g4 {[%emt 0:00:14]} Bg6 {[%emt 0:00:51]} 7. h4 {[%emt 0:00:12]} h6 {[%emt 0:02:26]} 8. e3 {[%emt 0:00:59]} Bd6 {[%emt 0:02:53]} 9. Nge2 {[%emt 0:02:54]} Qc7 {[%emt 0:03:26]} 10. O-O-O {[%emt 0:13:04]} Nbd7 {[%emt 0:01:03]} 11. Bxd6 {[%emt 0:02:06]} Qxd6 {[%emt 0:00:06]} 12. Nf4 {[%emt 0:01:21]} Bh7 {[%emt 0:06:53]} 13. g5 {[%emt 0:00:54]} Ng8 {[%emt 0:03:20]} 14. e4 {[%emt 0:12:13]} dxe4 {[%emt 0:03:22]} 15. fxe4 {[%emt 0:01:09]} O-O-O {[%emt 0:03:44]} 16. Bh3 {[%emt 0:06:16]} Kb8 {[%emt 0:01:04]} 17. Rhf1 {[%emt 0:13:05]} hxg5 {[%emt 0:03:31]} 18. hxg5 {[%emt 0:00:05]} Ne7 {[%emt 0:01:54]} 1-0

[Event "41st Jacques-Lemans-Open 2022"]
[Site "St. Veit/Glan"]
[Date "2022.07.13"]
[Round "6.35"]
[White "Moewisch, Dave"]
[Black "Burbach, Brunel Baron"]
[Result "0-1"]
[ECO "A06"]
[WhiteElo "1941"]
[BlackElo "1820"]
[Annotator "ChessBase"]
[PlyCount "72"]
[EventDate "2022.07.09"]
[EventType "swiss"]
[EventCountry "AUT"]
[SourceTitle "playchess.com"]
[Source "ChessBase"]
[SourceQuality "1"]
[TimeControl "40/5400+30:1800+30"]

1. Nf3 {[%emt 0:00:09]} d5 {[%emt 0:00:34]} 2. g3 {[%emt 0:00:24]} Nf6 {[%emt 0:00:11]} 3. Bg2 {[%emt 0:00:14]} e6 {[%emt 0:00:58]} 4. O-O {[%emt 0:00:17]} b5 {[%emt 0:02:05]} 5. d3 {[%emt 0:02:32]} Be7 {[%emt 0:00:21]} 6. c4 {[%emt 0:00:25]} c6 {[%emt 0:05:23]} 7. b3 {[%emt 0:00:32]} Nbd7 {[%emt 0:04:27]} 8. Qc2 {[%emt 0:03:53]} Qb6 {[%emt 0:19:35]} 9. Nbd2 {[%emt 0:05:28]} O-O {[%emt 0:06:47]} 10. Bb2 {[%emt 0:04:34]} Bb7 {[%emt 0:05:22]} 11. e4 {[%emt 0:08:21]} Rfc8 {[%emt 0:04:34]} 12. e5 {[%emt 0:04:48]} Ne8 {[%emt 0:00:32]} 13. Rfe1 {[%emt 0:12:02]} a5 {[%emt 0:05:06]} 14. d4 {[%emt 0:04:32]} c5 {[%emt 0:04:29]} 15. cxb5 {[%emt 0:03:29]} Qxb5 {[%emt 0:01:50]} 16. Bf1 {[%emt 0:03:15]} Qb6 {[%emt 0:01:20]} 17. Bd3 {[%emt 0:04:21]} g6 {[%emt 0:00:52]} 18. h4 {[%emt 0:04:08]} Ng7 {[%emt 0:02:26]} 19. Kg2 {[%emt 0:06:14]} cxd4 {[%emt 0:08:45]} 20. Qd1 {[%emt 0:00:56]} Bc5 {[%emt 0:05:32]} 21. g4 {[%emt 0:04:59]} Ba6 {[%emt 0:03:53]} 22. Bxa6 {[%emt 0:01:34]} Qxa6 {[%emt 0:02:09]} 23. Nxd4 {[%emt 0:01:23]} Qb6 {[%emt 0:04:50]} 24. N2f3 {[%emt 0:00:37]} f6 {[%emt 0:03:27]} 25. exf6 {[%emt 0:07:53]} Nxf6 {[%emt 0:00:11]} 26. Ng5 {[%emt 0:00:08]} Re8 {[%emt 0:03:15]} 27. f4 {[%emt 0:09:03]} Rad8 {[%emt 0:01:07]} 28. Kh3 {[%emt 0:00:48]} h6 {[%emt 0:02:02]} 29. Ngf3 {[%emt 0:00:53]} Ne4 {[%emt 0:01:04]} 30. Re2 {[%emt 0:00:21]} Rf8 {[%emt 0:00:27]} 31. Ne5 {[%emt 0:01:14]} Rxf4 {[%emt 0:00:42]} 32. Nxg6 {[%emt 0:00:12]} Nf2+ {[%emt 0:00:27]} 33. Rxf2 {[%emt 0:00:21]} Rxf2 {[%emt 0:00:03]} 34. Ne2 {[%emt 0:02:19]} Bd6 {[%emt 0:00:30]} 35. Ng3 {[%emt 0:01:19]} Rxb2 {[%emt 0:00:56]} 36. Qc1 {[%emt 0:00:14]} Qf2 {[%emt 0:00:22]} 0-1

[Event "41st Jacques-Lemans-Open 2022"]
[Site "St. Veit/Glan"]
[Date "2022.07.13"]
[Round "6.36"]
[White "Ebner, Johann"]
[Black "Toefferl, Heimo"]
[Result "1-0"]
[ECO "D31"]
[WhiteElo "1907"]
[BlackElo "2003"]
[Annotator "ChessBase"]
[PlyCount "127"]
[EventDate "2022.07.09"]
[EventType "swiss"]
[EventCountry "AUT"]
[SourceTitle "playchess.com"]
[Source "ChessBase"]
[SourceQuality "1"]
[TimeControl "40/5400+30:1800+30"]

1. d4 {[%emt 0:10:41]} e6 {[%emt 0:00:13]} 2. c4 {[%emt 0:00:05]} d5 {[%emt 0:00:14]} 3. Nc3 {[%emt 0:00:07]} f5 {[%emt 0:00:21]} 4. Bf4 {[%emt 0:03:52]} c6 {[%emt 0:00:09]} 5. e3 {[%emt 0:00:18]} Nf6 {[%emt 0:00:33]} 6. Bd3 {[%emt 0:01:00]} Be7 {[%emt 0:00:30]} 7. Nf3 {[%emt 0:01:29]} O-O {[%emt 0:00:14]} 8. O-O {[%emt 0:00:22]} Ne4 {[%emt 0:00:29]} 9. Ne5 {[%emt 0:10:27]} Nd7 {[%emt 0:00:28]} 10. f3 {[%emt 0:02:40]} Nd6 {[%emt 0:00:26]} 11. b3 {[%emt 0:22:36]} Nf7 {[%emt 0:00:50]} 12. Nxf7 {[%emt 0:01:19]} Rxf7 {[%emt 0:00:15]} 13. e4 {[%emt 0:00:36]} g5 {[%emt 0:02:20]} 14. exf5 {[%emt 0:06:33]} exf5 {[%emt 0:00:48]} 15. Be3 {[%emt 0:01:57]} f4 {[%emt 0:00:54]} 16. Bf2 {[%emt 0:00:07]} Nb6 {[%emt 0:01:12]} 17. c5 {[%emt 0:03:47]} Nd7 {[%emt 0:00:45]} 18. g3 {[%emt 0:07:52]} Nf8 {[%emt 0:00:26]} 19. g4 {[%emt 0:03:32]} Bf6 {[%emt 0:01:26]} 20. Qd2 {[%emt 0:01:28]} Ne6 {[%emt 0:00:42]} 21. Bf5 {[%emt 0:00:52]} Ng7 {[%emt 0:00:34]} 22. Bc2 {[%emt 0:02:23]} Qf8 {[%emt 0:01:00]} 23. Kg2 {[%emt 0:02:12]} Bd7 {[%emt 0:01:00]} 24. Rae1 {[%emt 0:00:11]} Re8 {[%emt 0:01:45]} 25. Rxe8 {[%emt 0:02:23]} Nxe8 {[%emt 0:01:53]} 26. h3 {[%emt 0:01:06]} Qg7 {[%emt 0:00:53]} 27. Ne2 {[%emt 0:02:43]} Re7 {[%emt 0:03:54]} 28. Rh1 {[%emt 0:02:06]} Nc7 {[%emt 0:10:18]} 29. h4 {[%emt 0:05:00]} h6 {[%emt 0:02:38]} 30. h5 {[%emt 0:00:57]} Qf8 {[%emt 0:01:47]} 31. Re1 {[%emt 0:01:31]} Qc8 {[%emt 0:00:47]} 32. Ng1 {[%emt 0:02:08]} Bxg4 {[%emt 0:00:52]} 33. Rxe7 {[%emt 0:00:10]} Bxe7 {[%emt 0:00:11]} 34. Qd3 {[%emt 0:00:21]} Qe6 {[%emt 0:23:37]} 35. Qh7+ {[%emt 0:00:37]} Kf8 {[%emt 0:00:22]} 36. Qh8+ {[%emt 0:00:28]} Qg8 {[%emt 0:00:48]} 37. Qxh6+ {[%emt 0:00:45]} Ke8 {[%emt 0:01:47]} 38. Qg6+ {[%emt 0:00:16]} Qxg6 {[%emt 0:02:05]} 39. Bxg6+ {[%emt 0:00:02]} Kf8 {[%emt 0:00:14]} 40. fxg4 {[%emt 0:00:07]} Ne6 {[%emt 0:03:32]} 41. Nf3 {[%emt 0:33:01]} Bf6 {[%emt 0:35:29]} 42. Bf5 {[%emt 0:00:51]} Nd8 {[%emt 0:00:41]} 43. Ne5 {[%emt 0:00:00]} Kg7 {[%emt 0:00:00]} 44. Kf3 {[%emt 0:00:00]} Be7 {[%emt 0:00:00]} 45. b4 {[%emt 0:00:00]} Bf6 {[%emt 0:00:00]} 46. a4 {[%emt 0:00:00]} a6 {[%emt 0:00:00]} 47. Nd3 {[%emt 0:00:00]} Kf7 {[%emt 0:00:00]} 48. Bc8 {[%emt 0:00:00]} Ke7 {[%emt 0:00:00]} 49. Nc1 {[%emt 0:00:00]} a5 {[%emt 0:00:00]} 50. bxa5 {[%emt 0:00:00]} Ne6 {[%emt 0:00:00]} 51. Nb3 {[%emt 0:00:00]} Nd8 {[%emt 0:00:00]} 52. a6 {[%emt 0:00:00]} bxa6 {[%emt 0:00:00]} 53. Bxa6 {[%emt 0:00:00]} Kd7 {[%emt 0:00:00]} 54. Bd3 {[%emt 0:00:00]} Kc7 {[%emt 0:00:00]} 55. Be1 {[%emt 0:00:00]} Ne6 {[%emt 0:00:00]} 56. Ba5+ {[%emt 0:00:00]} Kb7 {[%emt 0:00:00]} 57. Bb6 {[%emt 0:00:00]} Nxd4+ {[%emt 0:00:00]} 58. Nxd4 {[%emt 0:00:00]} Bxd4 {[%emt 0:00:00]} 59. a5 {[%emt 0:00:00]} Bg7 {[%emt 0:00:00]} 60. a6+ {[%emt 0:00:00]} Kb8 {[%emt 0:00:00]} 61. Bf5 {[%emt 0:00:00]} d4 {[%emt 0:00:00]} 62. Ke2 {[%emt 0:00:00]} Be5 {[%emt 0:00:00]} 63. a7+ {[%emt 0:00:00]} Kb7 {[%emt 0:00:00]} 64. Be4 {[%emt 0:00:00]} 1-0

[Event "41st Jacques-Lemans-Open 2022"]
[Site "St. Veit/Glan"]
[Date "2022.07.14"]
[Round "7.1"]
[White "Hechl, Gerald"]
[Black "Bosiocic, Marin"]
[Result "1/2-1/2"]
[ECO "B48"]
[WhiteElo "2222"]
[BlackElo "2549"]
[Annotator "ChessBase"]
[PlyCount "20"]
[EventDate "2022.07.09"]
[EventType "swiss"]
[EventCountry "AUT"]
[SourceTitle "playchess.com"]
[Source "ChessBase"]
[SourceQuality "1"]
[TimeControl "40/5400+30:1800+30"]

1. e4 {[%emt 0:00:02]} c5 {[%emt 0:00:09]} 2. Nf3 {[%emt 0:00:05]} e6 {[%emt 0:00:09]} 3. d4 {[%emt 0:00:05]} cxd4 {[%emt 0:00:09]} 4. Nxd4 {[%emt 0:00:04]} Nc6 {[%emt 0:00:10]} 5. Nc3 {[%emt 0:00:09]} Qc7 {[%emt 0:00:06]} 6. Be3 {[%emt 0:00:08]} a6 {[%emt 0:00:22]} 7. g4 {[%emt 0:00:05]} Nge7 {[%emt 0:00:24]} 8. Ndb5 {[%emt 0:07:06]} axb5 {[%emt 0:03:00]} 9. Nxb5 {[%emt 0:00:06]} Qa5+ {[%emt 0:05:37]} 10. Bd2 {[%emt 0:00:09]} Qa4 {[%emt 0:05:10]} 1/2-1/2